[Event "Anderssen Festival 2019"]
[Site "Wroclaw"]
[Date "2019.08.10"]
[Round "8.17"]
[White "Pawicka, Magdalena"]
[Black "Korpalski, Maciej"]
[Result "0-1"]
[ECO "B90"]
[WhiteElo "1700"]
[BlackElo "1954"]
[Annotator "NA"]
[PlyCount "70"]
[EventDate "2019.08.05"]
[EventType "swiss"]
[EventCountry "POL"]
[SourceTitle "playchess.com"]
[Source "ChessBase"]
[SourceQuality "1"]
[TimeControl "40/5400+30:900+30"]

1. e4 c5 2. Nf3 d6 3. d4 cxd4 4. Nxd4 Nf6 5. Nc3 a6 6. Be3 e6 7. f3 b5 8. Qd2 Nbd7 9. g4 Nb6 10. O-O-O Nfd7 11. Qf2 Bb7 12. Bd3 b4 13. Nce2 Qc7 14. Kb1 d5 15. Ng3 Bc5 16. h4 Na4 17. Nh5 O-O 18. Nb3 Bd6 19. g5 a5 20. Qd2 Be5 21. Bd4 Bxd4 22. Nxd4 dxe4 23. Bxe4 Bxe4 24. fxe4 Ne5 25. Qf4 Nxb2 26. Nb5 Qc5 27. Kxb2 Qxb5 28. Qg3 Nc4+ 29. Kb1 Qc5 30. Rh2 Rfd8 31. Rg1 Qd4 32. c3 bxc3 33. Nf6+ Kh8 34. Nxh7 c2+ 35. Rxc2 Rab8+ 0-1

[Event "Anderssen Festival 2019"]
[Site "Wroclaw"]
[Date "2019.08.10"]
[Round "8.18"]
[White "Plichta, Krzysztof"]
[Black "Barbier, Astrid"]
[Result "0-1"]
[ECO "B23"]
[WhiteElo "1582"]
[BlackElo "1941"]
[Annotator "NA"]
[PlyCount "142"]
[EventDate "2019.08.05"]
[EventType "swiss"]
[EventCountry "POL"]
[SourceTitle "playchess.com"]
[Source "ChessBase"]
[SourceQuality "1"]
[TimeControl "40/5400+30:900+30"]

1. e4 {[%emt 0:00:00]} c5 {[%emt 0:00:00]} 2. Nc3 {[%emt 0:00:00]} a6 {[%emt 0:00:00]} 3. f4 {[%emt 0:00:00]} b5 {[%emt 0:00:23]} 4. Nf3 {[%emt 0:00:02]} Bb7 {[%emt 0:00:28]} 5. d3 {[%emt 0:00:13]} e6 {[%emt 0:00:56]} 6. g3 {[%emt 0:00:28]} d5 {[%emt 0:02:09]} 7. exd5 {[%emt 0:02:52]} exd5 {[%emt 0:00:54]} 8. Bg2 {[%emt 0:02:08]} Nf6 {[%emt 0:01:45]} 9. O-O {[%emt 0:00:59]} Be7 {[%emt 0:02:01]} 10. Ne2 {[%emt 0:04:16]} O-O {[%emt 0:01:55]} 11. b3 {[%emt 0:01:01]} Re8 {[%emt 0:07:22]} 12. c4 {[%emt 0:00:27]} Bf8 {[%emt 0:02:19]} 13. Nc3 {[%emt 0:03:14]} d4 {[%emt 0:07:41]} 14. Nb1 {[%emt 0:02:35]} Nbd7 {[%emt 0:02:47]} 15. Re1 {[%emt 0:02:01]} Qc7 {[%emt 0:01:08]} 16. Ne5 {[%emt 0:04:53]} Bxg2 {[%emt 0:03:49]} 17. Nxd7 {[%emt 0:00:40]} Qxd7 {[%emt 0:13:21]} 18. Kxg2 {[%emt 0:01:05]} Rxe1 {[%emt 0:00:45]} 19. Qxe1 {[%emt 0:00:16]} Re8 {[%emt 0:00:26]} 20. Qf1 {[%emt 0:02:14]} Ng4 {[%emt 0:04:54]} 21. h3 {[%emt 0:01:27]} Ne3+ {[%emt 0:02:59]} 22. Bxe3 {[%emt 0:00:12]} dxe3 {[%emt 0:03:32]} 23. Nc3 {[%emt 0:02:03]} Qd4 {[%emt 0:01:22]} 24. Rc1 {[%emt 0:04:06]} b4 {[%emt 0:03:17]} 25. Ne2 {[%emt 0:01:29]} Qxd3 {[%emt 0:01:53]} 26. Qd1 {[%emt 0:01:29]} Qe4+ {[%emt 0:00:43]} 27. Kg1 {[%emt 0:01:41]} Qe7 {[%emt 0:05:49]} 28. Qc2 {[%emt 0:03:28]} g6 {[%emt 0:01:37]} 29. Rd1 {[%emt 0:01:13]} Rd8 {[%emt 0:00:39]} 30. Rd5 {[%emt 0:00:49]} Bg7 {[%emt 0:05:17]} 31. Qd3 {[%emt 0:00:35]} Rxd5 {[%emt 0:00:52]} 32. cxd5 {[%emt 0:01:16]} Bd4 {[%emt 0:05:02]} 33. Kg2 {[%emt 0:01:51]} a5 {[%emt 0:00:57]} 34. Kf3 {[%emt 0:01:01]} Qd7 {[%emt 0:03:10]} 35. Qe4 {[%emt 0:01:32]} f5 {[%emt 0:01:51]} 36. Qe6+ {[%emt 0:01:25]} Qxe6 {[%emt 0:00:12]} 37. dxe6 {[%emt 0:00:06]} Kf8 {[%emt 0:00:45]} 38. Ng1 {[%emt 0:03:11]} Ke7 {[%emt 0:00:25]} 39. Ke2 {[%emt 0:00:32]} Kxe6 {[%emt 0:00:51]} 40. Kd3 {[%emt 0:00:00]} h6 {[%emt 0:00:00]} 41. Nf3 {[%emt 0:02:29]} Kf6 {[%emt 0:05:19]} 42. h4 {[%emt 0:00:57]} Ke6 {[%emt 0:00:55]} 43. Ng1 {[%emt 0:04:32]} Kd5 {[%emt 0:01:15]} 44. Ne2 {[%emt 0:00:31]} Bf6 {[%emt 0:02:31]} 45. Nc1 {[%emt 0:02:14]} g5 {[%emt 0:03:01]} 46. fxg5 {[%emt 0:01:02]} hxg5 {[%emt 0:00:08]} 47. h5 {[%emt 0:00:11]} f4 {[%emt 0:01:02]} 48. gxf4 {[%emt 0:01:30]} gxf4 {[%emt 0:00:08]} 49. Ne2 {[%emt 0:00:17]} f3 {[%emt 0:04:39]} 50. Nf4+ {[%emt 0:00:26]} Ke5 {[%emt 0:01:15]} 51. Ng6+ {[%emt 0:00:30]} Kf5 {[%emt 0:00:40]} 52. Kxe3 {[%emt 0:00:54]} Kg4 {[%emt 0:01:36]} 53. Kf2 {[%emt 0:00:51]} Bd4+ {[%emt 0:00:19]} 54. Kf1 {[%emt 0:00:24]} Kxh5 {[%emt 0:00:31]} 55. Ne7 {[%emt 0:00:53]} Kg4 {[%emt 0:00:53]} 56. Nc6 {[%emt 0:00:18]} Kf4 {[%emt 0:01:00]} 57. Nxa5 {[%emt 0:00:29]} Ke4 {[%emt 0:00:29]} 58. Nc4 {[%emt 0:01:30]} Kd3 {[%emt 0:01:00]} 59. a4 {[%emt 0:01:00]} bxa3 {[%emt 0:00:28]} 60. Nxa3 {[%emt 0:00:14]} Kc3 {[%emt 0:00:54]} 61. Nc4 {[%emt 0:00:49]} f2 {[%emt 0:00:30]} 62. Na5 {[%emt 0:00:39]} Kb4 {[%emt 0:01:01]} 63. Nc4 {[%emt 0:00:36]} Kxb3 {[%emt 0:00:34]} 64. Nd2+ {[%emt 0:00:11]} Kc3 {[%emt 0:00:38]} 65. Ke2 {[%emt 0:00:14]} c4 {[%emt 0:01:36]} 66. Nf3 {[%emt 0:00:28]} Ba7 {[%emt 0:00:56]} 67. Nd2 {[%emt 0:00:42]} Kb4 {[%emt 0:00:25]} 68. Kd1 {[%emt 0:00:24]} c3 {[%emt 0:00:28]} 69. Nf1 {[%emt 0:00:16]} Kb3 {[%emt 0:00:27]} 70. Kc1 {[%emt 0:00:16]} Bb8 {[%emt 0:00:53]} 71. Kb1 {[%emt 0:00:21]} c2+ {[%emt 0:00:16]} 0-1

[Event "Anderssen Festival 2019"]
[Site "Wroclaw"]
[Date "2019.08.10"]
[Round "8.19"]
[White "Kawalko, Adam"]
[Black "Karnas, Leszek"]
[Result "1-0"]
[ECO "C17"]
[WhiteElo "1920"]
[BlackElo "1806"]
[Annotator "NA"]
[PlyCount "73"]
[EventDate "2019.08.05"]
[EventType "swiss"]
[EventCountry "POL"]
[SourceTitle "playchess.com"]
[Source "ChessBase"]
[SourceQuality "1"]
[TimeControl "40/5400+30:900+30"]

1. e4 {[%emt 0:00:00]} e6 {[%emt 0:00:00]} 2. d4 {[%emt 0:00:00]} d5 {[%emt 0:00:18]} 3. Nc3 {[%emt 0:00:00]} Bb4 {[%emt 0:01:12]} 4. e5 {[%emt 0:00:00]} c5 {[%emt 0:01:24]} 5. a3 {[%emt 0:00:00]} cxd4 {[%emt 0:03:36]} 6. axb4 {[%emt 0:00:00]} dxc3 {[%emt 0:00:29]} 7. Qg4 {[%emt 0:00:02]} Kf8 {[%emt 0:01:23]} 8. Nf3 {[%emt 0:01:02]} Qc7 {[%emt 0:01:22]} 9. Bd3 {[%emt 0:02:35]} Nc6 {[%emt 0:02:51]} 10. Qf4 {[%emt 0:03:41]} Nce7 {[%emt 0:10:48]} 11. Bxh7 {[%emt 0:06:52]} f5 {[%emt 0:12:36]} 12. Bxg8 {[%emt 0:04:37]} Kxg8 {[%emt 0:00:56]} 13. O-O {[%emt 0:03:15]} cxb2 {[%emt 0:11:07]} 14. Bxb2 {[%emt 0:00:18]} Bd7 {[%emt 0:01:34]} 15. Bd4 {[%emt 0:04:35]} b6 {[%emt 0:13:01]} 16. c3 {[%emt 0:01:33]} Ng6 {[%emt 0:02:26]} 17. Qg3 {[%emt 0:03:14]} Nf8 {[%emt 0:05:01]} 18. Ng5 {[%emt 0:01:24]} Bb5 {[%emt 0:04:38]} 19. Rfc1 {[%emt 0:02:58]} a6 {[%emt 0:00:12]} 20. f4 {[%emt 0:00:46]} Rh6 {[%emt 0:01:49]} 21. Qe3 {[%emt 0:01:40]} Nd7 {[%emt 0:01:11]} 22. h3 {[%emt 0:01:15]} Re8 {[%emt 0:07:06]} 23. g4 {[%emt 0:01:00]} g6 {[%emt 0:03:01]} 24. Ra2 {[%emt 0:00:09]} Kf8 {[%emt 0:03:29]} 25. Rg2 {[%emt 0:00:45]} Ke7 {[%emt 0:00:11]} 26. Qg3 {[%emt 0:01:23]} Rg8 {[%emt 0:06:56]} 27. gxf5 {[%emt 0:01:23]} gxf5 {[%emt 0:00:06]} 28. Nxe6 {[%emt 0:01:25]} Rxg3 {[%emt 0:00:30]} 29. Nxc7 {[%emt 0:00:02]} Rhxh3 {[%emt 0:01:27]} 30. Nxd5+ {[%emt 0:01:04]} Kf7 {[%emt 0:00:51]} 31. Rxg3 {[%emt 0:01:57]} Rxg3+ {[%emt 0:00:03]} 32. Kf2 {[%emt 0:00:01]} Rg4 {[%emt 0:01:27]} 33. Rg1 {[%emt 0:01:00]} Rh4 {[%emt 0:00:51]} 34. Rg5 {[%emt 0:05:13]} Bd3 {[%emt 0:00:03]} 35. Kg3 {[%emt 0:00:13]} Rh1 {[%emt 0:00:09]} 36. Nc7 {[%emt 0:00:50]} a5 {[%emt 0:00:38]} 37. e6+ {[%emt 0:00:51]} 1-0

[Event "Anderssen Festival 2019"]
[Site "Wroclaw"]
[Date "2019.08.10"]
[Round "8.20"]
[White "Auwens, Michel"]
[Black "Klonowski, Arkadiusz"]
[Result "0-1"]
[ECO "A08"]
[WhiteElo "1879"]
[BlackElo "1628"]
[Annotator "NA"]
[PlyCount "52"]
[EventDate "2019.08.05"]
[EventType "swiss"]
[EventCountry "POL"]
[SourceTitle "playchess.com"]
[Source "ChessBase"]
[SourceQuality "1"]
[TimeControl "40/5400+30:900+30"]

1. d3 d5 2. g3 Nf6 3. Bg2 g6 4. Nf3 Bg7 5. O-O O-O 6. c3 c5 7. Nbd2 b6 8. e4 Bb7 9. e5 Nfd7 10. e6 fxe6 11. Ng5 Rf6 12. Bh3 Nf8 13. f4 Qd6 14. Qe2 h6 15. Ngf3 Nbd7 16. b3 e5 17. fxe5 Nxe5 18. d4 Nxf3+ 19. Nxf3 g5 20. Ba3 Ng6 21. dxc5 bxc5 22. Qb5 Ba6 23. Qxc5 Qxc5+ 24. Bxc5 Bxf1 25. Rxf1 Rc6 26. Bd4 e5 0-1

[Event "Anderssen Festival 2019"]
[Site "Wroclaw"]
[Date "2019.08.11"]
[Round "9.1"]
[White "Eggink, Ryszard"]
[Black "Butkiewicz, Lukasz"]
[Result "1-0"]
[ECO "B48"]
[WhiteElo "2377"]
[BlackElo "2425"]
[Annotator "NA"]
[PlyCount "77"]
[EventDate "2019.08.05"]
[EventType "swiss"]
[EventCountry "POL"]
[SourceTitle "playchess.com"]
[Source "ChessBase"]
[SourceQuality "1"]
[TimeControl "40/5400+30:900+30"]

1. e4 {[%emt 0:03:45]} c5 {[%emt 0:00:00]} 2. Nf3 {[%emt 0:00:04]} e6 {[%emt 0:00:00]} 3. d4 {[%emt 0:00:04]} cxd4 {[%emt 0:00:00]} 4. Nxd4 {[%emt 0:00:04]} Nc6 {[%emt 0:00:00]} 5. Nc3 {[%emt 0:00:05]} Qc7 {[%emt 0:00:03]} 6. Be3 {[%emt 0:00:04]} a6 {[%emt 0:00:04]} 7. Qf3 {[%emt 0:00:04]} Bd6 {[%emt 0:01:53]} 8. O-O-O {[%emt 0:02:56]} Be5 {[%emt 0:01:34]} 9. Nxc6 {[%emt 0:05:49]} bxc6 10. Bd4 {[%emt 0:08:13]} Ne7 {[%emt 0:09:00]} 11. Bxe5 {[%emt 0:03:41]} Qxe5 {[%emt 0:00:07]} 12. Qe3 {[%emt 0:01:24]} Rb8 {[%emt 0:05:43]} 13. f4 {[%emt 0:00:28]} Qa5 {[%emt 0:00:52]} 14. Qd4 {[%emt 0:06:03]} f6 {[%emt 0:10:43]} 15. Bc4 {[%emt 0:07:49]} d5 {[%emt 0:04:07]} 16. Bb3 {[%emt 0:01:06]} O-O {[%emt 0:04:27]} 17. exd5 {[%emt 0:00:14]} cxd5 {[%emt 0:00:51]} 18. Rhe1 {[%emt 0:02:22]} Qc7 {[%emt 0:04:13]} 19. Na4 {[%emt 0:12:15]} Nf5 {[%emt 0:11:55]} 20. Qf2 {[%emt 0:01:47]} Rb4 {[%emt 0:01:04]} 21. g3 {[%emt 0:06:54]} d4 {[%emt 0:01:28]} 22. Qe2 {[%emt 0:16:12]} Re8 {[%emt 0:15:20]} 23. c3 {[%emt 0:06:09]} dxc3 {[%emt 0:01:48]} 24. bxc3 {[%emt 0:00:18]} Rb8 {[%emt 0:06:01]} 25. Qc4 {[%emt 0:00:51]} Qe7 {[%emt 0:04:32]} 26. g4 {[%emt 0:00:54]} Nh6 {[%emt 0:03:29]} 27. f5 {[%emt 0:01:15]} Nf7 {[%emt 0:01:39]} 28. Qc5 {[%emt 0:01:40]} Qxc5 {[%emt 0:05:26]} 29. Nxc5 {[%emt 0:00:18]} Ne5 {[%emt 0:00:09]} 30. fxe6 {[%emt 0:02:13]} Kf8 {[%emt 0:04:21]} 31. Ba4 {[%emt 0:00:28]} Bxe6 {[%emt 0:00:13]} 32. Bxe8 {[%emt 0:00:07]} Rxe8 {[%emt 0:00:03]} 33. Nxe6+ {[%emt 0:00:16]} Rxe6 {[%emt 0:00:01]} 34. Kc2 {[%emt 0:00:25]} h6 {[%emt 0:00:14]} 35. Rd8+ {[%emt 0:00:50]} Kf7 {[%emt 0:00:05]} 36. h3 {[%emt 0:01:15]} Rc6 {[%emt 0:00:23]} 37. Rb1 {[%emt 0:00:23]} Kg6 {[%emt 0:00:28]} 38. Rb7 {[%emt 0:00:13]} Re6 {[%emt 0:01:11]} 39. a4 {[%emt 0:01:19]} 1-0

[Event "Anderssen Festival 2019"]
[Site "Wroclaw"]
[Date "2019.08.11"]
[Round "9.2"]
[White "Skliarov, Viktor"]
[Black "Naumkin, Igor"]
[Result "1-0"]
[ECO "C02"]
[WhiteElo "2360"]
[BlackElo "2368"]
[Annotator "NA"]
[PlyCount "89"]
[EventDate "2019.08.05"]
[EventType "swiss"]
[EventCountry "POL"]
[SourceTitle "playchess.com"]
[Source "ChessBase"]
[SourceQuality "1"]
[TimeControl "40/5400+30:900+30"]

1. e4 {[%emt 0:00:00]} e6 {[%emt 0:02:01]} 2. d4 {[%emt 0:00:00]} d5 {[%emt 0:00:09]} 3. e5 {[%emt 0:00:00]} c5 {[%emt 0:00:11]} 4. c3 {[%emt 0:00:00]} Nc6 {[%emt 0:00:07]} 5. Nf3 {[%emt 0:00:00]} Qb6 {[%emt 0:00:12]} 6. a3 {[%emt 0:00:02]} Nh6 {[%emt 0:00:14]} 7. b4 {[%emt 0:00:43]} cxd4 {[%emt 0:00:35]} 8. Bxh6 {[%emt 0:00:06]} gxh6 {[%emt 0:00:10]} 9. cxd4 {[%emt 0:00:02]} Bd7 {[%emt 0:00:48]} 10. Ra2 {[%emt 0:00:17]} Rc8 {[%emt 0:01:00]} 11. Rc2 {[%emt 0:03:25]} Bg7 {[%emt 0:03:14]} 12. Nc3 {[%emt 0:02:55]} Ne7 {[%emt 0:09:07]} 13. Bd3 {[%emt 0:09:06]} O-O {[%emt 0:04:16]} 14. O-O {[%emt 0:00:25]} Rc7 {[%emt 0:05:54]} 15. Qd2 {[%emt 0:03:37]} Rfc8 {[%emt 0:06:32]} 16. Rfc1 {[%emt 0:01:48]} a6 {[%emt 0:03:40]} 17. g3 {[%emt 0:03:37]} Rc6 {[%emt 0:10:15]} 18. Kg2 {[%emt 0:04:09]} Qd8 {[%emt 0:01:48]} 19. h4 {[%emt 0:05:59]} Qf8 {[%emt 0:05:22]} 20. Ne2 {[%emt 0:03:54]} f6 {[%emt 0:04:18]} 21. exf6 {[%emt 0:02:01]} Bxf6 {[%emt 0:00:18]} 22. Nf4 {[%emt 0:00:52]} Rxc2 {[%emt 0:04:27]} 23. Rxc2 {[%emt 0:05:21]} Nc6 {[%emt 0:06:40]} 24. Qe3 {[%emt 0:05:59]} Qf7 {[%emt 0:05:08]} 25. Rc1 {[%emt 0:25:27]} Re8 {[%emt 0:03:23]} 26. Ne5 {[%emt 0:02:54]} Nxe5 {[%emt 0:02:44]} 27. dxe5 {[%emt 0:00:04]} Bd8 {[%emt 0:00:30]} 28. Qa7 {[%emt 0:07:01]} Ba4 {[%emt 0:03:21]} 29. Be2 {[%emt 0:01:26]} Qd7 {[%emt 0:05:27]} 30. Bh5 {[%emt 0:00:11]} Re7 {[%emt 0:03:26]} 31. Qd4 {[%emt 0:00:04]} Rg7 {[%emt 0:01:12]} 32. Kh2 {[%emt 0:01:03]} Bc6 {[%emt 0:01:12]} 33. Bf3 {[%emt 0:01:33]} Qe8 {[%emt 0:01:55]} 34. Bg2 {[%emt 0:00:45]} Re7 {[%emt 0:00:43]} 35. Bh3 {[%emt 0:00:28]} Qf7 {[%emt 0:01:05]} 36. Bg4 {[%emt 0:00:44]} Bd7 {[%emt 0:01:23]} 37. Re1 {[%emt 0:00:37]} Qf8 {[%emt 0:02:14]} 38. Kg1 {[%emt 0:01:55]} Qf7 {[%emt 0:01:02]} 39. Re3 {[%emt 0:01:25]} Bc7 {[%emt 0:01:23]} 40. Nh5 {[%emt 0:00:00]} Qg6 {[%emt 0:00:00]} 41. Rf3 {[%emt 0:04:45]} Rf7 {[%emt 0:11:04]} 42. Nf6+ {[%emt 0:05:01]} Kg7 {[%emt 0:01:13]} 43. Bh5 {[%emt 0:01:28]} Qb1+ {[%emt 0:00:12]} 44. Kh2 {[%emt 0:00:11]} Qe1 {[%emt 0:01:48]} 45. Qg4+ {[%emt 0:00:09]} 1-0

[Event "Anderssen Festival 2019"]
[Site "Wroclaw"]
[Date "2019.08.11"]
[Round "9.3"]
[White "Nowak, Mikolaj"]
[Black "Gutenev, Alexander"]
[Result "0-1"]
[ECO "A50"]
[WhiteElo "2230"]
[BlackElo "2470"]
[Annotator "ChessBase"]
[PlyCount "200"]
[EventDate "2019.08.05"]
[EventType "swiss"]
[EventCountry "POL"]
[SourceTitle "playchess.com"]
[Source "ChessBase"]
[SourceQuality "1"]
[TimeControl "40/5400+30:900+30"]

1. d4 {[%emt 0:00:00]} Nf6 {[%emt 0:09:14]} 2. c4 {[%emt 0:00:00]} b6 {[%emt 0:00:47]} 3. Nc3 {[%emt 0:03:21]} Bb7 {[%emt 0:00:05]} 4. Qc2 {[%emt 0:01:34]} d5 {[%emt 0:00:08]} 5. cxd5 {[%emt 0:01:53]} Nxd5 {[%emt 0:00:05]} 6. Nf3 {[%emt 0:00:33]} g6 {[%emt 0:00:06]} 7. Bd2 {[%emt 0:10:01]} Bg7 {[%emt 0:06:01]} 8. e4 {[%emt 0:00:21]} Nxc3 {[%emt 0:04:13]} 9. Bxc3 {[%emt 0:00:11]} O-O {[%emt 0:00:05]} 10. O-O-O {[%emt 0:00:57]} Nd7 {[%emt 0:04:24]} 11. h4 {[%emt 0:03:30]} Nf6 {[%emt 0:04:19]} 12. Bd3 {[%emt 0:07:15]} e6 {[%emt 0:01:38]} 13. Kb1 {[%emt 0:16:06]} c5 {[%emt 0:12:51]} 14. dxc5 {[%emt 0:02:30]} Rc8 {[%emt 0:03:24]} 15. Qe2 {[%emt 0:05:20]} Qe7 {[%emt 0:08:04]} 16. h5 {[%emt 0:11:37]} Nxh5 {[%emt 0:07:46]} 17. Bxg7 {[%emt 0:00:18]} Kxg7 {[%emt 0:00:04]} 18. Qd2 {[%emt 0:06:34]} e5 {[%emt 0:02:42]} 19. Nh4 {[%emt 0:04:58]} Nf4 {[%emt 0:10:13]} 20. g3 {[%emt 0:00:49]} Rfd8 {[%emt 0:00:32]} 21. Qe3 {[%emt 0:00:57]} Rxd3 {[%emt 0:09:09]} 22. Rxd3 {[%emt 0:00:18]} Qxc5 {[%emt 0:00:03]} 23. Qxc5 {[%emt 0:02:55]} bxc5 {[%emt 0:00:10]} 24. Re3 {[%emt 0:00:19]} Nd3 {[%emt 0:02:14]} 25. f3 {[%emt 0:01:09]} c4 {[%emt 0:00:59]} 26. b3 {[%emt 0:04:04]} Ba6 {[%emt 0:01:30]} 27. Rd1 {[%emt 0:01:50]} Nb4 {[%emt 0:04:56]} 28. Rc3 {[%emt 0:01:56]} cxb3 {[%emt 0:00:53]} 29. Rxb3 {[%emt 0:00:17]} Nc6 {[%emt 0:02:13]} 30. Rc1 {[%emt 0:00:40]} h5 {[%emt 0:01:56]} 31. f4 {[%emt 0:03:06]} Nd4 {[%emt 0:02:30]} 32. Rxc8 {[%emt 0:00:33]} Nxb3 {[%emt 0:00:57]} 33. Rd8 {[%emt 0:02:54]} Nc5 {[%emt 0:00:21]} 34. fxe5 {[%emt 0:02:02]} Bd3+ {[%emt 0:00:03]} 35. Kc1 {[%emt 0:01:17]} Bxe4 {[%emt 0:00:02]} 36. Rc8 {[%emt 0:00:28]} Nd3+ {[%emt 0:00:40]} 37. Kd2 {[%emt 0:00:07]} Nxe5 {[%emt 0:00:12]} 38. Ke3 {[%emt 0:01:33]} Bh1 {[%emt 0:02:27]} 39. Rc7 {[%emt 0:01:32]} a5 {[%emt 0:00:26]} 40. Kf2 {[%emt 0:00:00]} Bd5 {[%emt 0:00:00]} 41. a3 {[%emt 0:02:45]} a4 {[%emt 0:02:16]} 42. Ng2 {[%emt 0:01:21]} Kf6 {[%emt 0:00:02]} 43. Ne3 {[%emt 0:02:23]} Bb3 {[%emt 0:00:01]} 44. Rc3 {[%emt 0:02:31]} Ke6 {[%emt 0:01:10]} 45. Ke1 {[%emt 0:01:22]} g5 {[%emt 0:00:44]} 46. Kd2 {[%emt 0:02:28]} f5 {[%emt 0:00:14]} 47. Rc8 {[%emt 0:01:35]} h4 {[%emt 0:01:02]} 48. gxh4 {[%emt 0:00:22]} Nf3+ {[%emt 0:01:02]} 49. Ke2 {[%emt 0:01:56]} Nxh4 {[%emt 0:00:02]} 50. Re8+ {[%emt 0:00:41]} Kf6 {[%emt 0:00:17]} 51. Kf2 {[%emt 0:00:46]} Ng6 {[%emt 0:00:13]} 52. Rc8 {[%emt 0:00:47]} Ne5 {[%emt 0:03:05]} 53. Nc2 {[%emt 0:01:12]} f4 {[%emt 0:02:40]} 54. Nd4 {[%emt 0:00:53]} Bd5 {[%emt 0:01:44]} 55. Rf8+ {[%emt 0:01:12]} Nf7 {[%emt 0:00:08]} 56. Rb8 {[%emt 0:00:45]} g4 {[%emt 0:02:23]} 57. Rb4 {[%emt 0:00:31]} g3+ {[%emt 0:00:07]} 58. Ke1 {[%emt 0:02:06]} g2 {[%emt 0:05:04]} 59. Ne2 {[%emt 0:01:46]} f3 {[%emt 0:00:07]} 60. Rxa4 {[%emt 0:01:08]} fxe2 {[%emt 0:00:30]} 61. Rg4 {[%emt 0:00:23]} Ne5 {[%emt 0:00:42]} 62. Rxg2 {[%emt 0:00:24]} Bxg2 {[%emt 0:00:04]} 63. Kxe2 {[%emt 0:00:06]} Ke6 {[%emt 0:00:04]} 64. a4 {[%emt 0:00:05]} Kd5 {[%emt 0:00:02]} 65. a5 {[%emt 0:00:08]} Kd4 {[%emt 0:00:09]} 66. a6 {[%emt 0:00:08]} Nd3 {[%emt 0:00:16]} 67. a7 {[%emt 0:00:10]} Be4 {[%emt 0:00:15]} 68. Kd2 {[%emt 0:00:09]} Bf3 {[%emt 0:00:02]} 69. Kc2 {[%emt 0:00:15]} Nc5 {[%emt 0:00:03]} 70. Kb2 {[%emt 0:00:14]} Kc4 {[%emt 0:00:06]} 71. Ka3 {[%emt 0:00:16]} Kc3 {[%emt 0:00:38]} 72. Ka2 {[%emt 0:00:07]} Bc6 {[%emt 0:00:08]} 73. Ka3 {[%emt 0:00:07]} Ne6 {[%emt 0:00:11]} 74. Ka2 {[%emt 0:00:06]} Nd4 {[%emt 0:00:19]} 75. Ka3 {[%emt 0:00:07]} Nb5+ {[%emt 0:00:17]} 76. Ka2 {[%emt 0:00:47]} Nxa7 {[%emt 0:00:11]} 77. Ka3 {[%emt 0:00:13]} Bd7 {[%emt 0:00:17]} 78. Ka2 {[%emt 0:00:02]} Nb5 {[%emt 0:00:03]} 79. Ka1 {[%emt 0:00:12]} Be6 {[%emt 0:00:07]} 80. Kb1 {[%emt 0:00:04]} Na3+ {[%emt 0:00:04]} 81. Kc1 {[%emt 0:00:10]} Nc2 {[%emt 0:00:05]} 82. Kb1 {[%emt 0:00:07]} Bc4 {[%emt 0:00:04]} 83. Kc1 {[%emt 0:00:04]} Ba2 {[%emt 0:00:02]} 84. Kd1 {[%emt 0:00:12]} Nd4 {[%emt 0:00:06]} 85. Ke1 {[%emt 0:00:11]} Kd3 {[%emt 0:00:02]} 86. Kf2 {[%emt 0:00:16]} Ne2 {[%emt 0:00:03]} 87. Kf3 {[%emt 0:00:12]} Be6 {[%emt 0:00:03]} 88. Kf2 {[%emt 0:00:17]} Bd5 {[%emt 0:00:05]} 89. Ke1 {[%emt 0:00:10]} Ke3 {[%emt 0:00:03]} 90. Kd1 {[%emt 0:00:22]} Bb3+ {[%emt 0:00:03]} 91. Ke1 {[%emt 0:00:06]} Bc2 {[%emt 0:00:10]} 92. Kf1 {[%emt 0:00:01]} Nf4 {[%emt 0:00:06]} 93. Ke1 {[%emt 0:00:09]} Ng2+ {[%emt 0:00:02]} 94. Kf1 {[%emt 0:00:06]} Kf3 {[%emt 0:00:02]} 95. Kg1 {[%emt 0:00:05]} Kg3 {[%emt 0:00:03]} 96. Kf1 {[%emt 0:00:11]} Bd3+ {[%emt 0:00:02]} 97. Kg1 {[%emt 0:00:06]} Nf4 {[%emt 0:00:02]} 98. Kh1 {[%emt 0:00:07]} Bc4 {[%emt 0:00:03]} 99. Kg1 {[%emt 0:00:05]} Nh3+ {[%emt 0:00:02]} 100. Kh1 {[%emt 0:00:07]} Bd5# {[%emt 0:00:03]} 0-1

[Event "Anderssen Festival 2019"]
[Site "Wroclaw"]
[Date "2019.08.11"]
[Round "9.4"]
[White "Lalic, Bogdan"]
[Black "Kareva, Natalia"]
[Result "1-0"]
[ECO "D43"]
[WhiteElo "2411"]
[BlackElo "2135"]
[Annotator "NA"]
[PlyCount "35"]
[EventDate "2019.08.05"]
[EventType "swiss"]
[EventCountry "POL"]
[SourceTitle "playchess.com"]
[Source "ChessBase"]
[SourceQuality "1"]
[TimeControl "40/5400+30:900+30"]

1. d4 {[%emt 0:13:00]} e6 {[%emt 0:00:13]} 2. c4 {[%emt 0:00:16]} Nf6 {[%emt 0:00:37]} 3. Nf3 {[%emt 0:00:23]} d5 {[%emt 0:00:41]} 4. Nc3 {[%emt 0:00:07]} c6 {[%emt 0:00:09]} 5. Bg5 {[%emt 0:00:08]} Qa5 {[%emt 0:01:16]} 6. Bxf6 {[%emt 0:01:34]} gxf6 {[%emt 0:00:02]} 7. e3 {[%emt 0:00:30]} Rg8 {[%emt 0:01:47]} 8. g3 {[%emt 0:01:26]} dxc4 {[%emt 0:09:11]} 9. Bxc4 {[%emt 0:00:09]} b5 {[%emt 0:02:00]} 10. Bd3 {[%emt 0:00:33]} f5 {[%emt 0:01:00]} 11. O-O {[%emt 0:01:15]} Nd7 {[%emt 0:02:20]} 12. e4 {[%emt 0:01:11]} f4 {[%emt 0:04:04]} 13. e5 {[%emt 0:00:18]} f5 {[%emt 0:08:44]} 14. exf6 {[%emt 0:00:55]} Nxf6 {[%emt 0:00:04]} 15. Ne5 {[%emt 0:01:20]} b4 {[%emt 0:10:45]} 16. Ne4 {[%emt 0:07:17]} Be7 {[%emt 0:06:37]} 17. Nxf6+ {[%emt 0:00:22]} Bxf6 {[%emt 0:00:04]} 18. Qh5+ {[%emt 0:00:10]} 1-0

[Event "Anderssen Festival 2019"]
[Site "Wroclaw"]
[Date "2019.08.11"]
[Round "9.5"]
[White "Nguyen, Alex Dac-Vuong"]
[Black "Dubinski, Mateusz"]
[Result "0-1"]
[ECO "C78"]
[WhiteElo "2267"]
[BlackElo "2306"]
[Annotator "NA"]
[PlyCount "44"]
[EventDate "2019.08.05"]
[EventType "swiss"]
[EventCountry "POL"]
[SourceTitle "playchess.com"]
[Source "ChessBase"]
[SourceQuality "1"]
[TimeControl "40/5400+30:900+30"]

1. e4 {[%emt 0:00:00]} e5 {[%emt 0:00:00]} 2. Nf3 {[%emt 0:00:00]} Nc6 {[%emt 0:00:00]} 3. Bb5 {[%emt 0:00:00]} a6 {[%emt 0:00:00]} 4. Ba4 {[%emt 0:00:00]} Nf6 {[%emt 0:00:18]} 5. O-O {[%emt 0:00:01]} b5 {[%emt 0:03:15]} 6. Bb3 {[%emt 0:00:07]} Bc5 {[%emt 0:00:04]} 7. Re1 {[%emt 0:10:56]} O-O {[%emt 0:01:55]} 8. c3 {[%emt 0:03:53]} d6 {[%emt 0:00:49]} 9. a4 {[%emt 0:06:44]} Rb8 {[%emt 0:05:10]} 10. d3 {[%emt 0:03:36]} h6 {[%emt 0:02:09]} 11. Nbd2 {[%emt 0:01:45]} Nh5 {[%emt 0:10:53]} 12. axb5 {[%emt 0:03:55]} axb5 {[%emt 0:00:08]} 13. d4 {[%emt 0:00:48]} Bb6 {[%emt 0:02:33]} 14. dxe5 {[%emt 0:15:25]} dxe5 {[%emt 0:31:14]} 15. Bd5 {[%emt 0:01:36]} Qf6 {[%emt 0:02:27]} 16. Nf1 {[%emt 0:18:42]} Ne7 {[%emt 0:03:30]} 17. Bb3 {[%emt 0:09:36]} Ng6 {[%emt 0:02:07]} 18. Ng3 {[%emt 0:03:59]} Nhf4 {[%emt 0:00:49]} 19. Bc2 {[%emt 0:09:57]} Rd8 {[%emt 0:02:46]} 20. Bd2 {[%emt 0:00:22]} Bg4 {[%emt 0:01:46]} 21. Nf5 {[%emt 0:01:03]} Bxf3 {[%emt 0:01:09]} 22. gxf3 {[%emt 0:00:10]} Qg5+ {[%emt 0:00:41]} 0-1